[Event "Titled Tuesday Blitz November 29 Late 2022"]
[White "Chernomordik, Pavel"]
[Black "Mgeladze, Tamaz"]
[WhiteFideId "2804530"]
[BlackFideId "13601202"]
[WhiteElo "2192"]
[BlackElo "2288"]
[Result "1-0"]
[Round "04"]
[TimeControl "180+1"]
[Date "2022.11.30"]
[WhiteClock "0:00:10"]
[BlackClock "0:00:40"]

1. e4 {[%clk 0:03:00]}  c5 {[%clk 0:03:00]} 2. Nc3 {[%clk 0:03:00]}  g6 {[%clk 0:03:00]} 3. f4 {[%clk 0:03:00]}  Bg7 {[%clk 0:03:00]} 4. Nf3 {[%clk 0:03:00]}  Nc6 {[%clk 0:03:00]} 5. Bb5 {[%clk 0:02:59]}  Na5 {[%clk 0:03:00]} 6. O-O {[%clk 0:02:55]}  a6 {[%clk 0:03:00]} 7. Be2 {[%clk 0:02:55]}  d6 {[%clk 0:03:00]} 8. a3 {[%clk 0:02:48]}  Nc6 {[%clk 0:02:58]} 9. d3 {[%clk 0:02:46]}  Nf6 {[%clk 0:02:58]} 10. h3 {[%clk 0:02:44]}  O-O {[%clk 0:02:57]} 11. Be3 {[%clk 0:02:44]}  b5 {[%clk 0:02:55]} 12. Qd2 {[%clk 0:02:40]}  Bb7 {[%clk 0:02:55]} 13. Rae1 {[%clk 0:02:31]}  Nd7 {[%clk 0:02:53]} 14. f5 {[%clk 0:02:27]}  Nd4 {[%clk 0:02:52]} 15. Bd1 {[%clk 0:02:21]}  Qb6 {[%clk 0:02:49]} 16. Bh6 {[%clk 0:01:58]}  Qa5 {[%clk 0:02:49]} 17. Bxg7 {[%clk 0:01:57]}  Kxg7 {[%clk 0:02:50]} 18. Qg5 {[%clk 0:01:49]}  f6 {[%clk 0:02:49]} 19. Qg3 {[%clk 0:01:41]}  Nxf3+ {[%clk 0:02:47]} 20. Bxf3 {[%clk 0:01:34]}  Ne5 {[%clk 0:02:44]} 21. Bd1 {[%clk 0:01:30]}  b4 {[%clk 0:02:41]} 22. axb4 {[%clk 0:01:29]}  Qxb4 {[%clk 0:02:42]} 23. Ne2 {[%clk 0:01:24]}  Qxb2 {[%clk 0:02:39]} 24. Nf4 {[%clk 0:01:24]}  g5 {[%clk 0:02:19]} 25. Ne6+ {[%clk 0:01:22]}  Kh8 {[%clk 0:02:19]} 26. Nxf8 {[%clk 0:01:19]}  Rxf8 {[%clk 0:02:20]} 27. Qe3 {[%clk 0:01:15]}  a5 {[%clk 0:02:18]} 28. Qd2 {[%clk 0:01:14]}  Ra8 {[%clk 0:02:14]} 29. Bh5 {[%clk 0:01:11]}  a4 {[%clk 0:02:11]} 30. Rb1 {[%clk 0:01:11]}  Qd4+ {[%clk 0:02:11]} 31. Kh2 {[%clk 0:01:09]}  Bc6 {[%clk 0:02:09]} 32. Be2 {[%clk 0:01:01]}  Nc4 {[%clk 0:02:01]} 33. Qc1 {[%clk 0:00:54]}  Ne3 {[%clk 0:01:57]} 34. Rf3 {[%clk 0:00:53]}  Nd5 {[%clk 0:01:33]} 35. exd5 {[%clk 0:00:52]}  Bxd5 {[%clk 0:01:33]} 36. Re3 {[%clk 0:00:43]}  a3 {[%clk 0:01:22]} 37. Rxe7 {[%clk 0:00:39]}  a2 {[%clk 0:01:22]} 38. Ra1 {[%clk 0:00:39]}  Qf2 {[%clk 0:01:20]} 39. Bf1 {[%clk 0:00:34]}  Qd4 {[%clk 0:01:04]} 40. c3 {[%clk 0:00:31]}  Qh4 {[%clk 0:01:03]} 41. c4 {[%clk 0:00:27]}  Bc6 {[%clk 0:00:59]} 42. Qc3 {[%clk 0:00:24]}  g4 {[%clk 0:00:57]} 43. g3 {[%clk 0:00:24]}  Qh6 {[%clk 0:00:53]} 44. Re6 {[%clk 0:00:22]}  Kg7 {[%clk 0:00:53]} 45. Rxd6 {[%clk 0:00:21]}  Ra6 {[%clk 0:00:48]} 46. Rxc6 {[%clk 0:00:19]}  Rxc6 {[%clk 0:00:49]} 47. Rxa2 {[%clk 0:00:19]}  Qe3 {[%clk 0:00:49]} 48. Qd2 {[%clk 0:00:17]}  Qd4 {[%clk 0:00:47]} 49. Qf4 {[%clk 0:00:16]}  Qxf4 {[%clk 0:00:43]} 50. gxf4 {[%clk 0:00:16]}  gxh3 {[%clk 0:00:44]} 51. Kxh3 {[%clk 0:00:15]}  Rb6 {[%clk 0:00:45]} 52. Kg3 {[%clk 0:00:15]}  Kh6 {[%clk 0:00:45]} 53. Kf3 {[%clk 0:00:15]}  Rb1 {[%clk 0:00:45]} 54. Be2 {[%clk 0:00:14]}  Rh1 {[%clk 0:00:44]} 55. Ra5 {[%clk 0:00:13]}  Rh3+ {[%clk 0:00:44]} 56. Ke4 {[%clk 0:00:13]}  Rh2 {[%clk 0:00:44]} 57. Bf3 {[%clk 0:00:13]}  Rd2 {[%clk 0:00:42]} 58. Rxc5 {[%clk 0:00:12]}  Rc2 {[%clk 0:00:42]} 59. Rc7 {[%clk 0:00:12]}  Re2+ {[%clk 0:00:42]} 60. Kd4 {[%clk 0:00:11]}  Re4+ {[%clk 0:00:40]} 61. Bxe4 {[%clk 0:00:10]} 1-0


[Site "https://www.chess.com"]

[Event "Titled Tuesday Blitz November 29 Late 2022"]
[White "Chigaev, Maksim"]
[Black "Milikow, Yoav"]
[WhiteFideId "4108116"]
[BlackFideId "2822237"]
[WhiteElo "2541"]
[BlackElo "2341"]
[Result "1/2-1/2"]
[Round "04"]
[TimeControl "180+1"]
[Date "2022.11.30"]
[WhiteClock "0:00:08"]
[BlackClock "0:00:26"]

1. c4 {[%clk 0:02:56]}  e5 {[%clk 0:02:52]} 2. g3 {[%clk 0:02:54]}  c6 {[%clk 0:02:52]} 3. d4 {[%clk 0:02:53]}  e4 {[%clk 0:02:51]} 4. d5 {[%clk 0:02:53]}  Nf6 {[%clk 0:02:47]} 5. Nc3 {[%clk 0:02:45]}  Bc5 {[%clk 0:02:40]} 6. Bg2 {[%clk 0:02:41]}  Qb6 {[%clk 0:02:35]} 7. Nh3 {[%clk 0:02:31]}  e3 {[%clk 0:02:22]} 8. Bxe3 {[%clk 0:02:01]}  Bxe3 {[%clk 0:02:21]} 9. fxe3 {[%clk 0:02:02]}  Qxe3 {[%clk 0:02:14]} 10. d6 {[%clk 0:01:57]}  O-O {[%clk 0:02:11]} 11. Rf1 {[%clk 0:01:53]}  Na6 {[%clk 0:02:07]} 12. Rf3 {[%clk 0:01:40]}  Qe5 {[%clk 0:02:04]} 13. Qd2 {[%clk 0:01:35]}  Rb8 {[%clk 0:01:53]} 14. O-O-O {[%clk 0:01:28]}  b5 {[%clk 0:01:51]} 15. Rdf1 {[%clk 0:01:14]}  b4 {[%clk 0:01:46]} 16. Nd1 {[%clk 0:01:08]}  Ne4 {[%clk 0:01:41]} 17. Qe3 {[%clk 0:01:07]}  Qe6 {[%clk 0:01:13]} 18. Ng5 {[%clk 0:00:26]}  Qxc4+ {[%clk 0:01:10]} 19. Kb1 {[%clk 0:00:26]}  Nxg5 {[%clk 0:00:57]} 20. Qxg5 {[%clk 0:00:27]}  b3 {[%clk 0:00:51]} 21. axb3 {[%clk 0:00:20]}  Qe4+ {[%clk 0:00:35]} 22. Ka1 {[%clk 0:00:21]}  Nb4 {[%clk 0:00:26]} 23. Rxf7 {[%clk 0:00:07]}  Nc2+ {[%clk 0:00:26]} 24. Ka2 {[%clk 0:00:07]}  Nb4+ {[%clk 0:00:26]} 25. Ka1 {[%clk 0:00:07]}  Nc2+ {[%clk 0:00:26]} 26. Ka2 {[%clk 0:00:08]}  Nb4+ {[%clk 0:00:26]} 27. Ka1 {[%clk 0:00:08]} 1/2-1/2


[Site "https://www.chess.com"]

[Event "Titled Tuesday Blitz November 29 Late 2022"]
[White "Chirilov, James A"]
[Black "Besedes, Danilo"]
[WhiteFideId "30976677"]
[BlackFideId "946796"]
[WhiteElo "1790"]
[BlackElo "2352"]
[Result "1-0"]
[Round "04"]
[TimeControl "180+1"]
[Date "2022.11.30"]
[WhiteClock "0:00:21"]
[BlackClock "0:00:05"]

1. e4 {[%clk 0:03:00]}  d6 {[%clk 0:02:36]} 2. d4 {[%clk 0:03:00]}  Nf6 {[%clk 0:02:35]} 3. Nc3 {[%clk 0:03:00]}  Nbd7 {[%clk 0:02:35]} 4. Nf3 {[%clk 0:03:00]}  e5 {[%clk 0:02:35]} 5. Bc4 {[%clk 0:03:00]}  Be7 {[%clk 0:02:35]} 6. O-O {[%clk 0:03:00]}  c6 {[%clk 0:02:35]} 7. a4 {[%clk 0:03:00]}  h6 {[%clk 0:02:34]} 8. Re1 {[%clk 0:02:58]}  g5 {[%clk 0:02:34]} 9. h3 {[%clk 0:02:48]}  Qc7 {[%clk 0:02:34]} 10. Be3 {[%clk 0:02:35]}  Nf8 {[%clk 0:02:31]} 11. Nh2 {[%clk 0:02:25]}  Ng6 {[%clk 0:02:26]} 12. Ng4 {[%clk 0:02:19]}  h5 {[%clk 0:02:18]} 13. Nxf6+ {[%clk 0:01:58]}  Bxf6 {[%clk 0:02:19]} 14. dxe5 {[%clk 0:01:50]}  dxe5 {[%clk 0:02:19]} 15. Be2 {[%clk 0:01:38]}  Be6 {[%clk 0:01:33]} 16. Bxh5 {[%clk 0:01:34]}  Nf4 {[%clk 0:01:22]} 17. Bg4 {[%clk 0:01:31]}  Rd8 {[%clk 0:01:18]} 18. Qf3 {[%clk 0:01:30]}  Rh4 {[%clk 0:01:10]} 19. Bxe6 {[%clk 0:01:28]}  fxe6 {[%clk 0:01:06]} 20. Rad1 {[%clk 0:01:17]}  g4 {[%clk 0:01:02]} 21. Rxd8+ {[%clk 0:01:10]}  Bxd8 {[%clk 0:00:55]} 22. hxg4 {[%clk 0:01:06]}  Qh7 {[%clk 0:00:52]} 23. g3 {[%clk 0:01:07]}  Rh3 {[%clk 0:00:39]} 24. Rd1 {[%clk 0:01:01]}  Bb6 {[%clk 0:00:24]} 25. Bxb6 {[%clk 0:00:54]}  axb6 {[%clk 0:00:24]} 26. b4 {[%clk 0:00:44]}  Qe7 {[%clk 0:00:12]} 27. Rb1 {[%clk 0:00:31]}  Qd6 {[%clk 0:00:11]} 28. Ne2 {[%clk 0:00:26]}  Qd2 {[%clk 0:00:06]} 29. Nxf4 {[%clk 0:00:22]}  Qxc2 {[%clk 0:00:06]} 30. Nxh3 {[%clk 0:00:20]}  Qxb1+ {[%clk 0:00:05]} 31. Kg2 {[%clk 0:00:21]} 1-0


[Site "https://www.chess.com"]

[Event "Titled Tuesday Blitz November 29 Late 2022"]
[White "Chlpik, Martin"]
[Black "Pruess, David"]
[WhiteFideId "14923351"]
[BlackFideId "2014254"]
[WhiteElo "2109"]
[BlackElo "2444"]
[Result "1-0"]
[Round "04"]
[TimeControl "180+1"]
[Date "2022.11.30"]
[WhiteClock "0:00:33"]
[BlackClock "0:00:02"]

1. d4 {[%clk 0:03:00]}  Nf6 {[%clk 0:02:58]} 2. c4 {[%clk 0:03:01]}  e6 {[%clk 0:02:58]} 3. Nc3 {[%clk 0:03:01]}  Bb4 {[%clk 0:02:58]} 4. a3 {[%clk 0:03:02]}  Bxc3+ {[%clk 0:02:58]} 5. bxc3 {[%clk 0:03:03]}  O-O {[%clk 0:02:58]} 6. Bg5 {[%clk 0:02:48]}  h6 {[%clk 0:02:55]} 7. Bh4 {[%clk 0:02:12]}  c5 {[%clk 0:02:53]} 8. f3 {[%clk 0:02:02]}  d5 {[%clk 0:02:14]} 9. e3 {[%clk 0:01:58]}  Nc6 {[%clk 0:02:04]} 10. cxd5 {[%clk 0:01:57]}  exd5 {[%clk 0:01:57]} 11. Bd3 {[%clk 0:01:57]}  Re8 {[%clk 0:01:42]} 12. Ne2 {[%clk 0:01:57]}  Rxe3 {[%clk 0:01:29]} 13. O-O {[%clk 0:01:57]}  cxd4 {[%clk 0:01:24]} 14. cxd4 {[%clk 0:01:56]}  Qd6 {[%clk 0:01:09]} 15. Bg3 {[%clk 0:01:29]}  Qe7 {[%clk 0:00:56]} 16. Bf2 {[%clk 0:01:26]}  Re6 {[%clk 0:00:54]} 17. Nf4 {[%clk 0:01:27]}  Rd6 {[%clk 0:00:53]} 18. Re1 {[%clk 0:01:23]}  Be6 {[%clk 0:00:46]} 19. Bg3 {[%clk 0:01:04]}  Nxd4 {[%clk 0:00:38]} 20. Qa4 {[%clk 0:01:04]}  Nc6 {[%clk 0:00:29]} 21. Bf5 {[%clk 0:01:03]}  Qd7 {[%clk 0:00:17]} 22. Nxe6 {[%clk 0:01:02]}  fxe6 {[%clk 0:00:16]} 23. Bxd6 {[%clk 0:01:01]}  exf5 {[%clk 0:00:16]} 24. Be7 {[%clk 0:00:55]}  Ne8 {[%clk 0:00:08]} 25. Bc5 {[%clk 0:00:48]}  Rd8 {[%clk 0:00:06]} 26. Rad1 {[%clk 0:00:39]}  Nf6 {[%clk 0:00:06]} 27. Bd4 {[%clk 0:00:34]}  Nxd4 {[%clk 0:00:02]} 28. Qxd4 {[%clk 0:00:33]} 1-0


[Site "https://www.chess.com"]

[Event "Titled Tuesday Blitz November 29 Late 2022"]
[White "De Souza, Cristiano Gomes"]
[Black "Przybylski, Wojciech"]
[WhiteFideId "2151758"]
[BlackFideId "1117599"]
[WhiteElo "2068"]
[BlackElo "2221"]
[Result "0-1"]
[Round "04"]
[TimeControl "180+1"]
[Date "2022.11.30"]
[WhiteClock "0:00:32"]
[BlackClock "0:00:47"]

1. d4 {[%clk 0:03:00]}  Nf6 {[%clk 0:02:59]} 2. c4 {[%clk 0:03:00]}  e6 {[%clk 0:02:59]} 3. Nf3 {[%clk 0:02:59]}  d5 {[%clk 0:02:59]} 4. Nc3 {[%clk 0:02:58]}  c6 {[%clk 0:02:58]} 5. Bg5 {[%clk 0:02:57]}  h6 {[%clk 0:02:58]} 6. Bxf6 {[%clk 0:02:55]}  Qxf6 {[%clk 0:02:57]} 7. e3 {[%clk 0:02:56]}  h5 {[%clk 0:02:55]} 8. Rc1 {[%clk 0:02:56]}  h4 {[%clk 0:02:54]} 9. Ne5 {[%clk 0:02:55]}  Bb4 {[%clk 0:02:50]} 10. a3 {[%clk 0:02:53]}  Bxc3+ {[%clk 0:02:50]} 11. Rxc3 {[%clk 0:02:54]}  h3 {[%clk 0:02:49]} 12. g3 {[%clk 0:02:53]}  Nd7 {[%clk 0:02:48]} 13. Nxd7 {[%clk 0:02:50]}  Bxd7 {[%clk 0:02:48]} 14. Be2 {[%clk 0:02:51]}  dxc4 {[%clk 0:02:45]} 15. Rxc4 {[%clk 0:02:48]}  e5 {[%clk 0:02:43]} 16. Bf3 {[%clk 0:02:45]}  Be6 {[%clk 0:02:38]} 17. Rc5 {[%clk 0:02:44]}  exd4 {[%clk 0:02:35]} 18. Qxd4 {[%clk 0:02:42]}  Qxd4 {[%clk 0:02:32]} 19. exd4 {[%clk 0:02:41]}  O-O-O {[%clk 0:02:32]} 20. O-O {[%clk 0:02:30]}  Rxd4 {[%clk 0:02:29]} 21. Rfc1 {[%clk 0:02:25]}  Rhd8 {[%clk 0:02:25]} 22. Kf1 {[%clk 0:02:24]}  Rd2 {[%clk 0:02:20]} 23. R1c2 {[%clk 0:02:21]}  Kc7 {[%clk 0:02:07]} 24. Ke1 {[%clk 0:02:17]}  Rxc2 {[%clk 0:02:01]} 25. Rxc2 {[%clk 0:02:16]}  a5 {[%clk 0:02:02]} 26. Rd2 {[%clk 0:02:10]}  Re8 {[%clk 0:01:54]} 27. Re2 {[%clk 0:02:08]}  Ra8 {[%clk 0:01:22]} 28. Kd2 {[%clk 0:02:00]}  b5 {[%clk 0:01:19]} 29. Ke3 {[%clk 0:01:52]}  Kb6 {[%clk 0:01:17]} 30. Rc2 {[%clk 0:01:48]}  Rc8 {[%clk 0:01:15]} 31. b4 {[%clk 0:01:45]}  c5 {[%clk 0:01:11]} 32. bxc5+ {[%clk 0:01:28]}  Rxc5 {[%clk 0:01:11]} 33. Rxc5 {[%clk 0:01:23]}  Kxc5 {[%clk 0:01:11]} 34. Kd2 {[%clk 0:01:23]}  b4 {[%clk 0:01:04]} 35. axb4+ {[%clk 0:01:21]}  Kxb4 {[%clk 0:01:02]} 36. Kc2 {[%clk 0:01:20]}  a4 {[%clk 0:01:02]} 37. Be4 {[%clk 0:01:14]}  a3 {[%clk 0:01:00]} 38. f4 {[%clk 0:01:09]}  Bb3+ {[%clk 0:00:56]} 39. Kb1 {[%clk 0:01:08]}  Kc3 {[%clk 0:00:54]} 40. Bf5 {[%clk 0:01:04]}  Be6 {[%clk 0:00:51]} 41. Bxe6 {[%clk 0:00:56]}  fxe6 {[%clk 0:00:51]} 42. g4 {[%clk 0:00:42]}  g6 {[%clk 0:00:50]} 43. Ka2 {[%clk 0:00:37]}  Kd3 {[%clk 0:00:48]} 44. Kxa3 {[%clk 0:00:38]}  Ke3 {[%clk 0:00:48]} 45. f5 {[%clk 0:00:31]}  exf5 {[%clk 0:00:47]} 46. gxf5 {[%clk 0:00:32]}  gxf5 {[%clk 0:00:47]} 0-1


[Site "https://www.chess.com"]

[Event "Titled Tuesday Blitz November 29 Late 2022"]
[White "Deac, Bogdan-Daniel"]
[Black "Czopor, Maciej"]
[WhiteFideId "1226380"]
[BlackFideId "21805431"]
[WhiteElo "2648"]
[BlackElo "2324"]
[Result "1-0"]
[Round "04"]
[TimeControl "180+1"]
[Date "2022.11.30"]
[WhiteClock "0:00:46"]
[BlackClock "0:00:22"]

1. b3 {[%clk 0:02:52]}  Nf6 {[%clk 0:02:57]} 2. Bb2 {[%clk 0:02:51]}  g6 {[%clk 0:02:58]} 3. Nf3 {[%clk 0:02:51]}  Bg7 {[%clk 0:02:59]} 4. g3 {[%clk 0:02:52]}  O-O {[%clk 0:02:59]} 5. Bg2 {[%clk 0:02:52]}  d6 {[%clk 0:03:00]} 6. d4 {[%clk 0:02:52]}  Nc6 {[%clk 0:02:58]} 7. d5 {[%clk 0:02:47]}  Nb8 {[%clk 0:02:58]} 8. O-O {[%clk 0:02:46]}  e5 {[%clk 0:02:59]} 9. dxe6 {[%clk 0:02:46]}  fxe6 {[%clk 0:02:59]} 10. c4 {[%clk 0:02:46]}  Nc6 {[%clk 0:02:54]} 11. Nc3 {[%clk 0:02:45]}  e5 {[%clk 0:02:53]} 12. Nd5 {[%clk 0:02:43]}  Bg4 {[%clk 0:02:50]} 13. h3 {[%clk 0:02:40]}  Bd7 {[%clk 0:02:49]} 14. Qd2 {[%clk 0:02:36]}  Nxd5 {[%clk 0:02:42]} 15. cxd5 {[%clk 0:02:35]}  Ne7 {[%clk 0:02:42]} 16. Kh2 {[%clk 0:02:33]}  Nf5 {[%clk 0:02:27]} 17. e4 {[%clk 0:02:30]}  Bh6 {[%clk 0:02:26]} 18. Qe2 {[%clk 0:02:29]}  Ng7 {[%clk 0:02:25]} 19. Bc1 {[%clk 0:02:25]}  Bxc1 {[%clk 0:02:23]} 20. Raxc1 {[%clk 0:02:26]}  c5 {[%clk 0:02:21]} 21. Nd2 {[%clk 0:02:25]}  b5 {[%clk 0:02:14]} 22. f4 {[%clk 0:02:22]}  Qe7 {[%clk 0:02:14]} 23. Qe3 {[%clk 0:02:21]}  Nh5 {[%clk 0:02:05]} 24. f5 {[%clk 0:02:19]}  Qg7 {[%clk 0:01:47]} 25. Bf3 {[%clk 0:02:12]}  Nf6 {[%clk 0:01:47]} 26. g4 {[%clk 0:02:12]}  g5 {[%clk 0:01:47]} 27. Rg1 {[%clk 0:02:07]}  h6 {[%clk 0:01:47]} 28. Be2 {[%clk 0:02:07]}  Kf7 {[%clk 0:01:46]} 29. a4 {[%clk 0:02:07]}  a6 {[%clk 0:01:46]} 30. Ra1 {[%clk 0:02:06]}  Ke7 {[%clk 0:01:45]} 31. b4 {[%clk 0:02:03]}  c4 {[%clk 0:01:34]} 32. Ra3 {[%clk 0:02:02]}  Rfb8 {[%clk 0:01:31]} 33. Rga1 {[%clk 0:01:55]}  Qf8 {[%clk 0:01:30]} 34. Kg2 {[%clk 0:01:43]}  Qd8 {[%clk 0:01:26]} 35. h4 {[%clk 0:01:28]}  Qg8 {[%clk 0:01:01]} 36. axb5 {[%clk 0:01:22]}  axb5 {[%clk 0:01:01]} 37. hxg5 {[%clk 0:01:14]}  hxg5 {[%clk 0:01:00]} 38. Rxa8 {[%clk 0:01:13]}  Rxa8 {[%clk 0:01:01]} 39. Rxa8 {[%clk 0:01:14]}  Qxa8 {[%clk 0:01:02]} 40. Qxg5 {[%clk 0:01:14]}  Qa2 {[%clk 0:00:57]} 41. Qg7+ {[%clk 0:01:10]}  Ke8 {[%clk 0:00:57]} 42. Qg6+ {[%clk 0:01:07]}  Ke7 {[%clk 0:00:57]} 43. g5 {[%clk 0:00:53]}  Qxd2 {[%clk 0:00:28]} 44. Qxf6+ {[%clk 0:00:44]}  Ke8 {[%clk 0:00:28]} 45. Qh8+ {[%clk 0:00:45]}  Ke7 {[%clk 0:00:21]} 46. f6+ {[%clk 0:00:44]}  Kf7 {[%clk 0:00:22]} 47. Qg7+ {[%clk 0:00:45]}  Ke8 {[%clk 0:00:22]} 48. Qe7# {[%clk 0:00:46]} 1-0


[Site "https://www.chess.com"]

[Event "Titled Tuesday Blitz November 29 Late 2022"]
[White "Di Berardino, Diego Rafael"]
[Black "Romero Ruscalleda, Josep"]
[WhiteFideId "2105446"]
[BlackFideId "2231859"]
[WhiteElo "2442"]
[BlackElo "2183"]
[Result "1-0"]
[Round "04"]
[TimeControl "180+1"]
[Date "2022.11.30"]
[WhiteClock "0:00:41"]
[BlackClock "0:00:10"]

1. e4 {[%clk 0:02:58]}  g6 {[%clk 0:03:00]} 2. d4 {[%clk 0:02:58]}  Bg7 {[%clk 0:03:00]} 3. Nc3 {[%clk 0:02:57]}  d6 {[%clk 0:03:00]} 4. f4 {[%clk 0:02:56]}  a6 {[%clk 0:03:00]} 5. Nf3 {[%clk 0:02:56]}  b5 {[%clk 0:03:00]} 6. Bd3 {[%clk 0:02:56]}  Nd7 {[%clk 0:02:59]} 7. O-O {[%clk 0:02:56]}  c5 {[%clk 0:02:58]} 8. a4 {[%clk 0:02:44]}  cxd4 {[%clk 0:02:51]} 9. Ne2 {[%clk 0:02:43]}  bxa4 {[%clk 0:02:46]} 10. Nexd4 {[%clk 0:02:40]}  Ngf6 {[%clk 0:02:43]} 11. Rxa4 {[%clk 0:02:29]}  Nc5 {[%clk 0:02:43]} 12. Ra3 {[%clk 0:02:09]}  Nfxe4 {[%clk 0:02:34]} 13. Bxe4 {[%clk 0:02:08]}  Nxe4 {[%clk 0:02:33]} 14. Re1 {[%clk 0:02:02]}  Bb7 {[%clk 0:02:16]} 15. Rb3 {[%clk 0:01:46]}  Nc5 {[%clk 0:02:15]} 16. Rbe3 {[%clk 0:01:36]}  Bf6 {[%clk 0:01:57]} 17. b4 {[%clk 0:01:22]}  Ne6 {[%clk 0:01:40]} 18. Nxe6 {[%clk 0:01:14]}  fxe6 {[%clk 0:01:40]} 19. Nd4 {[%clk 0:01:10]}  Bd5 {[%clk 0:01:24]} 20. Nxe6 {[%clk 0:01:03]}  Bxe6 {[%clk 0:01:11]} 21. Rxe6 {[%clk 0:01:04]}  O-O {[%clk 0:01:05]} 22. Be3 {[%clk 0:00:57]}  Qc8 {[%clk 0:00:49]} 23. Qd5 {[%clk 0:00:57]}  Kg7 {[%clk 0:00:49]} 24. Bd4 {[%clk 0:00:47]}  Qxc2 {[%clk 0:00:19]} 25. Rxe7+ {[%clk 0:00:46]}  Kh8 {[%clk 0:00:14]} 26. Bxf6+ {[%clk 0:00:41]}  Rxf6 {[%clk 0:00:10]} 27. Qxa8+ {[%clk 0:00:41]} 1-0


[Site "https://www.chess.com"]

[Event "Titled Tuesday Blitz November 29 Late 2022"]
[White "Dias, Joao Batista"]
[Black "Bettalli, Francesco"]
[WhiteFideId "2108240"]
[BlackFideId "2816453"]
[WhiteElo "1898"]
[BlackElo "2216"]
[Result "0-1"]
[Round "04"]
[TimeControl "180+1"]
[Date "2022.11.30"]
[WhiteClock "0:00:18"]
[BlackClock "0:02:02"]

1. e4 {[%clk 0:03:00]}  e5 {[%clk 0:02:59]} 2. Nf3 {[%clk 0:02:59]}  Nf6 {[%clk 0:02:59]} 3. Nc3 {[%clk 0:02:58]}  Bc5 {[%clk 0:02:59]} 4. Be2 {[%clk 0:02:54]}  O-O {[%clk 0:02:58]} 5. O-O {[%clk 0:02:53]}  d6 {[%clk 0:02:58]} 6. d3 {[%clk 0:02:53]}  Nbd7 {[%clk 0:02:55]} 7. Bg5 {[%clk 0:02:50]}  c6 {[%clk 0:02:55]} 8. a3 {[%clk 0:02:48]}  Re8 {[%clk 0:02:54]} 9. Qd2 {[%clk 0:02:36]}  Nf8 {[%clk 0:02:52]} 10. h3 {[%clk 0:02:26]}  Ng6 {[%clk 0:02:48]} 11. Bxf6 {[%clk 0:01:55]}  Qxf6 {[%clk 0:02:47]} 12. Qg5 {[%clk 0:01:55]}  Qxg5 {[%clk 0:02:45]} 13. Nxg5 {[%clk 0:01:53]}  h6 {[%clk 0:02:45]} 14. Nf3 {[%clk 0:01:53]}  Nf4 {[%clk 0:02:45]} 15. Rfe1 {[%clk 0:01:51]}  b5 {[%clk 0:02:39]} 16. Bf1 {[%clk 0:01:50]}  g5 {[%clk 0:02:37]} 17. Nh2 {[%clk 0:01:45]}  h5 {[%clk 0:02:36]} 18. Ne2 {[%clk 0:01:38]}  Ne6 {[%clk 0:02:31]} 19. Ng3 {[%clk 0:01:36]}  Nf4 {[%clk 0:02:30]} 20. Ne2 {[%clk 0:01:35]}  Ne6 {[%clk 0:02:30]} 21. Ng3 {[%clk 0:01:35]}  Ng7 {[%clk 0:02:31]} 22. Kh1 {[%clk 0:01:32]}  Bxf2 {[%clk 0:02:30]} 23. Ne2 {[%clk 0:01:28]}  Bxe1 {[%clk 0:02:30]} 24. Rxe1 {[%clk 0:01:28]}  Ne6 {[%clk 0:02:31]} 25. g3 {[%clk 0:01:26]}  Nd4 {[%clk 0:02:29]} 26. Nxd4 {[%clk 0:01:25]}  exd4 {[%clk 0:02:30]} 27. Be2 {[%clk 0:01:24]}  h4 {[%clk 0:02:30]} 28. Kg2 {[%clk 0:01:23]}  hxg3 {[%clk 0:02:30]} 29. Kxg3 {[%clk 0:01:23]}  Kg7 {[%clk 0:02:30]} 30. Rf1 {[%clk 0:01:22]}  d5 {[%clk 0:02:30]} 31. Bf3 {[%clk 0:01:21]}  dxe4 {[%clk 0:02:30]} 32. Bxe4 {[%clk 0:01:21]}  Bd7 {[%clk 0:02:29]} 33. Ng4 {[%clk 0:01:19]}  Bxg4 {[%clk 0:02:29]} 34. Kxg4 {[%clk 0:01:19]}  Re5 {[%clk 0:02:26]} 35. Bxc6 {[%clk 0:01:17]}  Rc8 {[%clk 0:02:26]} 36. Be4 {[%clk 0:01:06]}  Rxc2 {[%clk 0:02:26]} 37. b4 {[%clk 0:00:59]}  Rc3 {[%clk 0:02:25]} 38. h4 {[%clk 0:00:50]}  gxh4 {[%clk 0:02:24]} 39. Kxh4 {[%clk 0:00:50]}  Rxa3 {[%clk 0:02:24]} 40. Rg1+ {[%clk 0:00:49]}  Kf6 {[%clk 0:02:23]} 41. Rg8 {[%clk 0:00:48]}  a5 {[%clk 0:02:21]} 42. bxa5 {[%clk 0:00:47]}  Rxa5 {[%clk 0:02:22]} 43. Rd8 {[%clk 0:00:47]}  Ra4 {[%clk 0:02:21]} 44. Kg4 {[%clk 0:00:44]}  Ke6 {[%clk 0:02:20]} 45. Kf4 {[%clk 0:00:44]}  f6 {[%clk 0:02:17]} 46. Rb8 {[%clk 0:00:38]}  Ra1 {[%clk 0:02:15]} 47. Rb6+ {[%clk 0:00:37]}  Kf7 {[%clk 0:02:16]} 48. Rb7+ {[%clk 0:00:37]}  Re7 {[%clk 0:02:16]} 49. Rxb5 {[%clk 0:00:36]}  Rf1+ {[%clk 0:02:14]} 50. Kg4 {[%clk 0:00:34]}  Rc7 {[%clk 0:02:10]} 51. Rb4 {[%clk 0:00:24]}  Rc5 {[%clk 0:02:05]} 52. Rxd4 {[%clk 0:00:21]}  f5+ {[%clk 0:02:01]} 53. Bxf5 {[%clk 0:00:18]}  Rfxf5 {[%clk 0:02:02]} 0-1


[Site "https://www.chess.com"]